fUST/lending_fUST_20260508
["ID","MTS","AMOUNT","RATE_DAILY","PERIOD"]
[421812891,1778179844000,-500.0,0.00010958,2]
[421812888,1778179844000,-500.0,0.00010958,2]
[421812886,1778179844000,-500.0,0.00010958,2]
[421812885,1778179844000,-1146.94,0.00010958,2]
[421812881,1778179844000,-1344.87,0.00010958,2]
[421812883,1778179844000,-500.0,0.00010958,2]
[421812878,1778179844000,-500.0,0.00010958,2]
[421812879,1778179844000,-500.0,0.00010958,2]
[421812890,1778179844000,-1474.8,0.00010958,2]
[421812876,1778179844000,-500.0,0.00010958,2]
[421812884,1778179844000,-500.0,0.00010958,2]
[421812893,1778179844000,-500.0,0.00010958,2]
[421812902,1778179844000,-1083.75,0.00010958,2]
[421812896,1778179844000,-550.52300617,0.00010958,2]
[421812892,1778179844000,-522.63,0.00010958,2]
[421812906,1778179844000,-968.78,0.00010958,2]
[421812894,1778179844000,-2761.59,0.00010958,2]
[421812897,1778179844000,-500.0,0.00010958,2]
[421812898,1778179844000,-500.0,0.00010958,2]
[421812899,1778179844000,-500.0,0.00010958,2]
[421812905,1778179844000,-500.0,0.00010958,2]
[421812903,1778179844000,-500.0,0.00010958,2]
[421812904,1778179844000,-921.7,0.00010958,2]
[421812901,1778179844000,-3726.03,0.00010958,2]
[421812900,1778179844000,-500.0,0.00010958,2]
[421812882,1778179844000,-500.0,0.00010958,2]
[421812895,1778179844000,-1150.62,0.00010958,2]
[421812880,1778179844000,-500.0,0.00010958,2]
[421812859,1778179844000,-1051.14,0.00010958,2]
[421812875,1778179844000,-500.0,0.00010958,2]
[421812908,1778179844000,-1736.49,0.00010958,2]
[421812847,1778179844000,-500.0,0.00010958,2]
[421812848,1778179844000,-500.0,0.00010958,2]
[421812852,1778179844000,-500.0,0.00010958,2]
[421812851,1778179844000,-500.0,0.00010958,2]
[421812850,1778179844000,-500.0,0.00010958,2]
[421812853,1778179844000,-500.0,0.00010958,2]
[421812849,1778179844000,-500.0,0.00010958,2]
[421812855,1778179844000,-500.0,0.00010958,2]
[421812854,1778179844000,-500.0,0.00010958,2]
[421812856,1778179844000,-500.0,0.00010958,2]
[421812858,1778179844000,-500.0,0.00010958,2]
[421812857,1778179844000,-4286.61,0.00010958,2]
[421812874,1778179844000,-500.0,0.00010958,2]
[421812860,1778179844000,-1066.58,0.00010958,2]
[421812863,1778179844000,-447.09317342,0.00010958,2]
[421812866,1778179844000,-1894.72,0.00010958,2]
[421812861,1778179844000,-3788.79,0.00010958,2]
[421812865,1778179844000,-189.42865582,0.00010958,2]
[421812868,1778179844000,-500.0,0.00010958,2]
[421812867,1778179844000,-500.0,0.00010958,2]
[421812864,1778179844000,-500.0,0.00010958,2]
[421812869,1778179844000,-720.42,0.00010958,2]
[421812870,1778179844000,-1155.02,0.00010958,2]
[421812871,1778179844000,-650.33,0.00010958,2]
[421812872,1778179844000,-500.0,0.00010958,2]
[421812873,1778179844000,-500.0,0.00010958,2]
[421812877,1778179844000,-500.0,0.00010958,2]
[421812862,1778179844000,-500.0,0.00010958,2]
[421812907,1778179844000,-500.0,0.00010958,2]
[421812951,1778179844000,-500.0,0.00010958,2]
[421812911,1778179844000,-500.0,0.00010958,2]
[421812944,1778179844000,-500.0,0.00010958,2]
[421812945,1778179844000,-916.53,0.00010958,2]
[421812946,1778179844000,-500.0,0.00010958,2]
[421812948,1778179844000,-824.32,0.00010958,2]
[421812947,1778179844000,-500.0,0.00010958,2]
[421812949,1778179844000,-500.0,0.00010958,2]
[421812950,1778179844000,-500.0,0.00010958,2]
[421812952,1778179844000,-500.0,0.00010958,2]
[421812954,1778179844000,-1017.74,0.00010958,2]
[421812953,1778179844000,-500.0,0.00010958,2]
[421812956,1778179844000,-1458.53,0.00010958,2]
[421812957,1778179844000,-500.0,0.00010958,2]
[421812959,1778179844000,-500.0,0.00010958,2]
[421812941,1778179844000,-500.0,0.00010958,2]
[421812958,1778179844000,-2236.98,0.00010958,2]
[421812964,1778179844000,-500.0,0.00010958,2]
[421812962,1778179844000,-907.2,0.00010958,2]
[421812961,1778179844000,-2054.75,0.00010958,2]
[421812965,1778179844000,-500.0,0.00010958,2]
[421812968,1778179844000,-542.09,0.00010958,2]
[421812967,1778179844000,-500.0,0.00010958,2]
[421812966,1778179844000,-500.0,0.00010958,2]
[421812963,1778179844000,-500.0,0.00010958,2]
[421812969,1778179844000,-500.0,0.00010958,2]
[421812971,1778179844000,-510.52,0.00010958,2]
[421812972,1778179844000,-500.0,0.00010958,2]
[421812909,1778179844000,-816.94,0.00010958,2]
[421812970,1778179844000,-2462.91,0.00010958,2]
[421812960,1778179844000,-500.0,0.00010958,2]
[421812943,1778179844000,-500.0,0.00010958,2]
[421812955,1778179844000,-500.0,0.00010958,2]
[421812942,1778179844000,-500.0,0.00010958,2]
[421812910,1778179844000,-500.0,0.00010958,2]
[421812940,1778179844000,-500.0,0.00010958,2]
[421812912,1778179844000,-702.88,0.00010958,2]
[421812913,1778179844000,-1978.06,0.00010958,2]
[421812914,1778179844000,-500.0,0.00010958,2]
[421812917,1778179844000,-1101.15,0.00010958,2]
[421812916,1778179844000,-500.0,0.00010958,2]
[421812918,1778179844000,-500.0,0.00010958,2]
[421812919,1778179844000,-500.0,0.00010958,2]
[421812920,1778179844000,-500.0,0.00010958,2]
[421812922,1778179844000,-500.0,0.00010958,2]
[421812930,1778179844000,-1447.85,0.00010958,2]
[421812921,1778179844000,-500.0,0.00010958,2]
[421812923,1778179844000,-690.62,0.00010958,2]
[421812928,1778179844000,-3778.54,0.00010958,2]
[421812915,1778179844000,-500.0,0.00010958,2]
[421812924,1778179844000,-1948.64,0.00010958,2]
[421812926,1778179844000,-760.29,0.00010958,2]
[421812939,1778179844000,-500.0,0.00010958,2]
[421812937,1778179844000,-190.20241404,0.00010958,2]
[421812936,1778179844000,-500.0,0.00010958,2]
[421812934,1778179844000,-500.0,0.00010958,2]
[421812935,1778179844000,-500.0,0.00010958,2]
[421812932,1778179844000,-864.27,0.00010958,2]
[421812938,1778179844000,-500.0,0.00010958,2]
[421812931,1778179844000,-1001.15,0.00010958,2]
[421812929,1778179844000,-500.0,0.00010958,2]
[421812927,1778179844000,-500.0,0.00010958,2]
[421812933,1778179844000,-500.0,0.00010958,2]
[421812925,1778179844000,-18810.08,0.00010958,2]
[421813019,1778179845000,-500.0,0.00011232,2]
[421813016,1778179845000,-500.0,0.00011232,2]
[421813018,1778179845000,-500.0,0.00011232,2]
[421813014,1778179845000,-2388.7675,0.00011232,2]
[421813004,1778179845000,-300.0,0.00011176,2]
[421813013,1778179845000,-151.25589622,0.00011178,2]
[421813010,1778179845000,-300.0,0.00011176,2]
[421813011,1778179845000,-300.0,0.00011176,2]
[421813007,1778179845000,-300.0,0.00011176,2]
[421813008,1778179845000,-300.0,0.00011176,2]
[421813020,1778179845000,-500.0,0.00011232,2]
[421813006,1778179845000,-300.0,0.00011176,2]
[421813009,1778179845000,-300.0,0.00011176,2]
[421813017,1778179845000,-500.0,0.00011232,2]
[421813026,1778179845000,-500.0,0.00011232,2]
[421813021,1778179845000,-500.0,0.00011232,2]
[421813015,1778179845000,-500.0,0.00011232,2]
[421813024,1778179845000,-500.0,0.00011232,2]
[421813022,1778179845000,-500.0,0.00011232,2]
[421813023,1778179845000,-500.0,0.00011232,2]
[421813025,1778179845000,-644.54,0.00011232,2]
[421813028,1778179845000,-500.0,0.00011232,2]
[421813027,1778179845000,-500.0,0.00011232,2]
[421813029,1778179845000,-588.63,0.00011232,2]
[421813030,1778179845000,-500.0,0.00011232,2]
[421813035,1778179845000,-513.24,0.00011232,2]
[421813031,1778179845000,-500.0,0.00011232,2]
[421813003,1778179845000,-300.0,0.00011176,2]
[421813012,1778179845000,-600.0,0.00011176,2]
[421813005,1778179845000,-300.0,0.00011176,2]
[421812974,1778179845000,-500.0,0.00010958,2]
[421813002,1778179845000,-300.0,0.00011176,2]
[421813033,1778179845000,-500.0,0.00011232,2]
[421812973,1778179845000,-500.0,0.00010958,2]
[421812977,1778179845000,-500.0,0.00010958,2]
[421812980,1778179845000,-1559.68,0.00010958,2]
[421812976,1778179845000,-1407.58,0.00010958,2]
[421812979,1778179845000,-500.0,0.00010958,2]
[421812978,1778179845000,-500.0,0.00010958,2]
[421812975,1778179845000,-1710.5,0.00010958,2]
[421812981,1778179845000,-500.0,0.00010958,2]
[421812982,1778179845000,-500.0,0.00010958,2]
[421812985,1778179845000,-500.0,0.00010958,2]
[421812983,1778179845000,-500.0,0.00010958,2]
[421812984,1778179845000,-500.0,0.00010958,2]
[421813001,1778179845000,-300.0,0.00011176,2]
[421812987,1778179845000,-500.0,0.00010958,2]
[421812990,1778179845000,-1000.0,0.00010958,2]
[421812991,1778179845000,-560.15,0.00010958,2]
[421812989,1778179845000,-500.0,0.00010958,2]
[421812988,1778179845000,-500.0,0.00010958,2]
[421812992,1778179845000,-500.0,0.00010958,2]
[421812994,1778179845000,-500.0,0.00010958,2]
[421812995,1778179845000,-500.0,0.00010958,2]
[421812996,1778179845000,-151.0,0.00011049,2]
[421812993,1778179845000,-500.0,0.00010958,2]
[421812998,1778179845000,-300.0,0.00011176,2]
[421812997,1778179845000,-300.0,0.00011176,2]
[421813000,1778179845000,-300.0,0.00011176,2]
[421812999,1778179845000,-300.0,0.00011176,2]
[421812986,1778179845000,-500.0,0.00010958,2]
[421813034,1778179845000,-608.02,0.00011232,2]
[421813088,1778179845000,-500.0,0.00011232,2]
[421813036,1778179845000,-500.0,0.00011232,2]
[421813065,1778179845000,-500.0,0.00011232,2]
[421813072,1778179845000,-500.0,0.00011232,2]
[421813071,1778179845000,-702.0,0.00011232,2]
[421813074,1778179845000,-500.0,0.00011232,2]
[421813082,1778179845000,-529.57,0.00011232,2]
[421813083,1778179845000,-500.0,0.00011232,2]
[421813079,1778179845000,-685.08,0.00011232,2]
[421813076,1778179845000,-500.0,0.00011232,2]
[421813073,1778179845000,-500.0,0.00011232,2]
[421813077,1778179845000,-500.0,0.00011232,2]
[421813078,1778179845000,-500.0,0.00011232,2]
[421813075,1778179845000,-537.47,0.00011232,2]
[421813081,1778179845000,-1307.5,0.00011232,2]
[421813060,1778179845000,-788.09,0.00011232,2]
[421813080,1778179845000,-1387.1,0.00011232,2]
[421813085,1778179845000,-500.0,0.00011232,2]
[421813086,1778179845000,-500.0,0.00011232,2]
[421813087,1778179845000,-500.0,0.00011232,2]
[421813093,1778179845000,-500.0,0.00011232,2]
[421813091,1778179845000,-380.52328706,0.00011232,2]
[421813092,1778179845000,-500.0,0.00011232,2]
[421813089,1778179845000,-391.29746025,0.00011232,2]
[421813090,1778179845000,-500.0,0.00011232,2]
[421813095,1778179845000,-500.0,0.00011232,2]
[421813096,1778179845000,-500.0,0.00011232,2]
[421813097,1778179845000,-500.0,0.00011232,2]
[421813098,1778179845000,-500.0,0.00011232,2]
[421813032,1778179845000,-500.0,0.00011232,2]
[421813084,1778179845000,-500.0,0.00011232,2]
[421813069,1778179845000,-500.0,0.00011232,2]
[421813094,1778179845000,-500.0,0.00011232,2]
[421813061,1778179845000,-500.0,0.00011232,2]
[421813037,1778179845000,-500.0,0.00011232,2]
[421813039,1778179845000,-500.0,0.00011232,2]
[421813040,1778179845000,-500.0,0.00011232,2]
[421813042,1778179845000,-929.52,0.00011232,2]
[421813038,1778179845000,-500.0,0.00011232,2]
[421813043,1778179845000,-500.0,0.00011232,2]
[421813041,1778179845000,-500.0,0.00011232,2]
[421813044,1778179845000,-500.0,0.00011232,2]
[421813062,1778179845000,-307.3608986,0.00011232,2]
[421813045,1778179845000,-216.88,0.00011232,2]
[421813047,1778179845000,-500.0,0.00011232,2]
[421813049,1778179845000,-500.0,0.00011232,2]
[421813048,1778179845000,-500.0,0.00011232,2]
[421813050,1778179845000,-500.0,0.00011232,2]
[421813046,1778179845000,-500.0,0.00011232,2]
[421813053,1778179845000,-500.0,0.00011232,2]
[421813070,1778179845000,-606.67,0.00011232,2]
[421813052,1778179845000,-500.0,0.00011232,2]
[421813063,1778179845000,-232.4191014,0.00011232,2]
[421813064,1778179845000,-500.0,0.00011232,2]
[421813066,1778179845000,-1576.76,0.00011232,2]
[421813067,1778179845000,-500.0,0.00011232,2]
[421813068,1778179845000,-185.95,0.00011232,2]
[421813057,1778179845000,-543.44,0.00011232,2]
[421813058,1778179845000,-500.0,0.00011232,2]
[421813056,1778179845000,-500.0,0.00011232,2]
[421813054,1778179845000,-423.16463144,0.00011232,2]
[421813055,1778179845000,-76.83536856,0.00011232,2]
[421813059,1778179845000,-500.0,0.00011232,2]
[421813051,1778179845000,-500.0,0.00011232,2]
[421813141,1778179846000,-816.94,0.00011232,2]
[421813139,1778179846000,-430.06,0.00011232,2]
[421813138,1778179846000,-968.78,0.00011232,2]
[421813137,1778179846000,-500.0,0.00011232,2]
[421813135,1778179846000,-500.0,0.00011232,2]
[421813136,1778179846000,-921.7,0.00011232,2]
[421813133,1778179846000,-3726.03,0.00011232,2]
[421813132,1778179846000,-500.0,0.00011232,2]
[421813129,1778179846000,-2761.59,0.00011232,2]
[421813130,1778179846000,-1150.62,0.00011232,2]
[421813134,1778179846000,-1083.75,0.00011232,2]
[421813142,1778179846000,-500.0,0.00011232,2]
[421813154,1778179846000,-2981.87174936,0.00011232,2]
[421813143,1778179846000,-702.88,0.00011232,2]
[421813140,1778179846000,-1736.49,0.00011232,2]
[421813145,1778179846000,-500.0,0.00011232,2]
[421813146,1778179846000,-500.0,0.00011232,2]
[421813147,1778179846000,-500.0,0.00011232,2]
[421813149,1778179846000,-500.0,0.00011232,2]
[421813148,1778179846000,-1101.15,0.00011232,2]
[421813150,1778179846000,-500.0,0.00011232,2]
[421813151,1778179846000,-500.0,0.00011232,2]
[421813152,1778179846000,-690.62,0.00011232,2]
[421813153,1778179846000,-1948.64,0.00011232,2]
[421813128,1778179846000,-500.0,0.00011232,2]
[421813144,1778179846000,-1978.06,0.00011232,2]
[421813131,1778179846000,-500.0,0.00011232,2]
[421813114,1778179846000,-500.0,0.00011232,2]
[421813127,1778179846000,-522.63,0.00011232,2]
[421813155,1778179846000,-15828.20825064,0.00011232,2]
[421813099,1778179846000,-4286.61,0.00011232,2]
[421813101,1778179846000,-1051.14,0.00011232,2]
[421813110,1778179846000,-500.0,0.00011232,2]
[421813100,1778179846000,-500.0,0.00011232,2]
[421813103,1778179846000,-3788.79,0.00011232,2]
[421813102,1778179846000,-1066.58,0.00011232,2]
[421813109,1778179846000,-650.33,0.00011232,2]
[421813104,1778179846000,-500.0,0.00011232,2]
[421813105,1778179846000,-1894.72,0.00011232,2]
[421813106,1778179846000,-500.0,0.00011232,2]
[421813108,1778179846000,-1155.02,0.00011232,2]
[421813107,1778179846000,-720.42,0.00011232,2]
[421813112,1778179846000,-540.17840195,0.00011232,2]
[421813111,1778179846000,-500.0,0.00011232,2]
[421813113,1778179846000,-500.0,0.00011232,2]
[421813115,1778179846000,-150.28,0.00011232,2]
[421813116,1778179846000,-500.0,0.00011232,2]
[421813117,1778179846000,-1344.87,0.00011232,2]
[421813122,1778179846000,-500.0,0.00011232,2]
[421813120,1778179846000,-500.0,0.00011232,2]
[421813123,1778179846000,-500.0,0.00011232,2]
[421813121,1778179846000,-1146.94,0.00011232,2]
[421813119,1778179846000,-500.0,0.00011232,2]
[421813118,1778179846000,-500.0,0.00011232,2]
[421813125,1778179846000,-1474.8,0.00011232,2]
[421813124,1778179846000,-356.17,0.00011232,2]
[421813126,1778179846000,-500.0,0.00011232,2]
[421813160,1778179846000,-1001.15,0.00011232,2]
[421813166,1778179846000,-498.52396531,0.00011232,2]
[421813163,1778179846000,-500.0,0.00011232,2]
[421813185,1778179846000,-500.0,0.00011232,2]
[421813188,1778179846000,-500.0,0.00011232,2]
[421813192,1778179846000,-500.0,0.00011232,2]
[421813195,1778179846000,-500.0,0.00011232,2]
[421813194,1778179846000,-1407.58,0.00011232,2]
[421813196,1778179846000,-1559.68,0.00011232,2]
[421813199,1778179846000,-500.0,0.00011232,2]
[421813203,1778179846000,-500.0,0.00011232,2]
[421813200,1778179846000,-500.0,0.00011232,2]
[421813197,1778179846000,-500.0,0.00011232,2]
[421813204,1778179846000,-564.48,0.00011232,2]
[421813198,1778179846000,-500.0,0.00011232,2]
[421813183,1778179846000,-907.2,0.00011232,2]
[421813193,1778179846000,-1710.5,0.00011232,2]
[421813201,1778179846000,-500.0,0.00011232,2]
[421813206,1778179846000,-161.57704075,0.00011274,2]
[421813205,1778179846000,-160.0,0.00011274,2]
[421813210,1778179846000,-171.78339638,0.00011356,2]
[421813207,1778179846000,-160.0,0.00011274,2]
[421813161,1778179846000,-864.27,0.00011232,2]
[421813209,1778179846000,-537.6845,0.00011356,2]
[421813212,1778179846000,-500.0,0.00011506,2]
[421813213,1778179846000,-500.0,0.00011506,2]
[421813215,1778179846000,-443.59,0.00011506,2]
[421813211,1778179846000,-846.5534,0.00011506,2]
[421813214,1778179846000,-500.0,0.00011506,2]
[421813202,1778179846000,-560.15,0.00011232,2]
[421813187,1778179846000,-542.09,0.00011232,2]
[421813208,1778179846000,-160.0,0.00011274,2]
[421813186,1778179846000,-500.0,0.00011232,2]
[421813189,1778179846000,-2462.91,0.00011232,2]
[421813162,1778179846000,-500.0,0.00011232,2]
[421813156,1778179846000,-760.29,0.00011232,2]
[421813158,1778179846000,-3778.54,0.00011232,2]
[421813159,1778179846000,-1447.85,0.00011232,2]
[421813164,1778179846000,-500.0,0.00011232,2]
[421813165,1778179846000,-500.0,0.00011232,2]
[421813167,1778179846000,-500.0,0.00011232,2]
[421813169,1778179846000,-500.0,0.00011232,2]
[421813170,1778179846000,-500.0,0.00011232,2]
[421813177,1778179846000,-500.0,0.00011232,2]
[421813176,1778179846000,-1017.74,0.00011232,2]
[421813174,1778179846000,-500.0,0.00011232,2]
[421813157,1778179846000,-500.0,0.00011232,2]
[421813175,1778179846000,-500.0,0.00011232,2]
[421813168,1778179846000,-500.0,0.00011232,2]
[421813179,1778179846000,-2236.98,0.00011232,2]
[421813184,1778179846000,-500.0,0.00011232,2]
[421813181,1778179846000,-500.0,0.00011232,2]
[421813191,1778179846000,-500.0,0.00011232,2]
[421813182,1778179846000,-2054.75,0.00011232,2]
[421813180,1778179846000,-500.0,0.00011232,2]
[421813178,1778179846000,-1458.53,0.00011232,2]
[421813173,1778179846000,-824.32,0.00011232,2]
[421813172,1778179846000,-500.0,0.00011232,2]
[421813171,1778179846000,-916.53,0.00011232,2]
[421813190,1778179846000,-510.52,0.00011232,2]
[421813242,1778179847000,-543.44,0.00011506,2]
[421813241,1778179847000,-500.0,0.00011506,2]
[421813244,1778179847000,-500.0,0.00011506,2]
[421813243,1778179847000,-157.26,0.00011506,2]
[421813246,1778179847000,-539.78,0.00011506,2]
[421813256,1778179847000,-537.47,0.00011506,2]
[421813249,1778179847000,-1576.76,0.00011506,2]
[421813251,1778179847000,-500.0,0.00011506,2]
[421813248,1778179847000,-500.0,0.00011506,2]
[421813254,1778179847000,-500.0,0.00011506,2]
[421813247,1778179847000,-500.0,0.00011506,2]
[421813245,1778179847000,-788.09,0.00011506,2]
[421813252,1778179847000,-606.67,0.00011506,2]
[421813253,1778179847000,-702.0,0.00011506,2]
[421813255,1778179847000,-500.0,0.00011506,2]
[421813260,1778179847000,-685.08,0.00011506,2]
[421813257,1778179847000,-500.0,0.00011506,2]
[421813269,1778179847000,-500.0,0.00011506,2]
[421813240,1778179847000,-500.0,0.00011506,2]
[421813250,1778179847000,-500.0,0.00011506,2]
[421813238,1778179847000,-1866.6895833,0.00010959,2]
[421813228,1778179847000,-500.0,0.00011506,2]
[421813237,1778179847000,-237.50700465,0.00011506,2]
[421813216,1778179847000,-500.0,0.00011506,2]
[421813217,1778179847000,-644.54,0.00011506,2]
[421813219,1778179847000,-363.49,0.00011506,2]
[421813218,1778179847000,-500.0,0.00011506,2]
[421813220,1778179847000,-500.0,0.00011506,2]
[421813222,1778179847000,-344.41,0.00011506,2]
[421813229,1778179847000,-492.87088346,0.00011506,2]
[421813221,1778179847000,-588.63,0.00011506,2]
[421813223,1778179847000,-500.0,0.00011506,2]
[421813227,1778179847000,-500.0,0.00011506,2]
[421813224,1778179847000,-500.0,0.00011506,2]
[421813225,1778179847000,-608.02,0.00011506,2]
[421813226,1778179847000,-500.0,0.00011506,2]
[421813230,1778179847000,-500.0,0.00011506,2]
[421813232,1778179847000,-929.52,0.00011506,2]
[421813233,1778179847000,-94.11549345,0.00011506,2]
[421813234,1778179847000,-405.88450655,0.00011506,2]
[421813236,1778179847000,-334.17,0.00011506,2]
[421813235,1778179847000,-500.28,0.00011506,2]
[421813239,1778179847000,-262.49299535,0.00011506,2]
[421813266,1778179847000,-500.0,0.00011506,2]
[421813258,1778179847000,-500.0,0.00011506,2]
[421813267,1778179847000,-500.0,0.00011506,2]
[421813295,1778179847000,-1083.75,0.00011506,2]
[421813292,1778179847000,-1150.62,0.00011506,2]
[421813294,1778179847000,-3726.03,0.00011506,2]
[421813291,1778179847000,-2761.59,0.00011506,2]
[421813290,1778179847000,-522.63,0.00011506,2]
[421813293,1778179847000,-500.0,0.00011506,2]
[421813296,1778179847000,-921.7,0.00011506,2]
[421813289,1778179847000,-500.0,0.00011506,2]
[421813306,1778179847000,-500.0,0.00011506,2]
[421813287,1778179847000,-500.0,0.00011506,2]
[421813307,1778179847000,-500.0,0.00011506,2]
[421813299,1778179847000,-1736.49,0.00011506,2]
[421813298,1778179847000,-968.78,0.00011506,2]
[421813301,1778179847000,-500.0,0.00011506,2]
[421813303,1778179847000,-1978.06,0.00011506,2]
[421813302,1778179847000,-702.88,0.00011506,2]
[421813300,1778179847000,-816.94,0.00011506,2]
[421813304,1778179847000,-500.0,0.00011506,2]
[421813305,1778179847000,-1101.15,0.00011506,2]
[421813262,1778179847000,-1307.5,0.00011506,2]
[421813297,1778179847000,-500.0,0.00011506,2]
[421813288,1778179847000,-1474.8,0.00011506,2]
[421813259,1778179847000,-500.0,0.00011506,2]
[421813284,1778179847000,-500.0,0.00011506,2]
[421813263,1778179847000,-529.57,0.00011506,2]
[421813286,1778179847000,-1146.94,0.00011506,2]
[421813268,1778179847000,-500.0,0.00011506,2]
[421813264,1778179847000,-500.0,0.00011506,2]
[421813265,1778179847000,-500.0,0.00011506,2]
[421813271,1778179847000,-417.37,0.00011506,2]
[421813281,1778179847000,-500.0,0.00011506,2]
[421813270,1778179847000,-297.52,0.00011506,2]
[421813273,1778179847000,-500.0,0.00011506,2]
[421813272,1778179847000,-500.0,0.00011506,2]
[421813261,1778179847000,-1387.1,0.00011506,2]
[421813275,1778179847000,-3788.79,0.00011506,2]
[421813283,1778179847000,-1344.87,0.00011506,2]
[421813274,1778179847000,-1051.14,0.00011506,2]
[421813276,1778179847000,-1894.72,0.00011506,2]
[421813277,1778179847000,-720.42,0.00011506,2]
[421813280,1778179847000,-500.0,0.00011506,2]
[421813278,1778179847000,-1155.02,0.00011506,2]
[421813279,1778179847000,-650.33,0.00011506,2]
[421813285,1778179847000,-500.0,0.00011506,2]
[421813282,1778179847000,-500.0,0.00011506,2]
[421813320,1778179848000,-500.0,0.00011506,2]
[421813322,1778179848000,-500.0,0.00011506,2]
[421813323,1778179848000,-916.53,0.00011506,2]
[421813330,1778179848000,-500.0,0.00011506,2]
[421813324,1778179848000,-824.32,0.00011506,2]
[421813326,1778179848000,-1017.74,0.00011506,2]
[421813321,1778179848000,-500.0,0.00011506,2]
[421813325,1778179848000,-500.0,0.00011506,2]
[421813312,1778179848000,-760.29,0.00011506,2]
[421813317,1778179848000,-310.92,0.00011506,2]
[421813318,1778179848000,-500.0,0.00011506,2]
[421813316,1778179848000,-864.27,0.00011506,2]
[421813327,1778179848000,-1458.53,0.00011506,2]
[421813315,1778179848000,-1001.15,0.00011506,2]
[421813314,1778179848000,-1447.85,0.00011506,2]
[421813313,1778179848000,-3778.54,0.00011506,2]
[421813311,1778179848000,-18810.08,0.00011506,2]
[421813310,1778179848000,-1948.64,0.00011506,2]
[421813308,1778179848000,-500.0,0.00011506,2]
[421813319,1778179848000,-500.0,0.00011506,2]
[421813331,1778179848000,-2054.75,0.00011506,2]
[421813342,1778179848000,-1559.68,0.00011506,2]
[421813329,1778179848000,-500.0,0.00011506,2]
[421813351,1778179848000,-1758.80634799,0.000117,2]
[421813350,1778179848000,-25358.59890047,0.000117,2]
[421813348,1778179848000,-154.28177196,0.00011506,2]
[421813352,1778179848000,-1356.72894654,0.000117,2]
[421813347,1778179848000,-560.15,0.00011506,2]
[421813349,1778179848000,-281.198,0.00011613,2]
[421813346,1778179848000,-500.0,0.00011506,2]
[421813345,1778179848000,-500.0,0.00011506,2]
[421813343,1778179848000,-500.0,0.00011506,2]
[421813328,1778179848000,-2236.98,0.00011506,2]
[421813338,1778179848000,-510.52,0.00011506,2]
[421813344,1778179848000,-500.0,0.00011506,2]
[421813309,1778179848000,-690.62,0.00011506,2]
[421813335,1778179848000,-542.09,0.00011506,2]
[421813336,1778179848000,-500.0,0.00011506,2]
[421813334,1778179848000,-500.0,0.00011506,2]
[421813337,1778179848000,-2462.91,0.00011506,2]
[421813339,1778179848000,-1710.5,0.00011506,2]
[421813332,1778179848000,-907.2,0.00011506,2]